bitfinex-derivatives/quotes_ETHF0:USTF0_20250902
["timestamp","ask_amount","ask_price","bid_price","bid_amount"]
[1756785320185,0.299,4374.4,4373.7,0.001]
[1756785320388,0.5081,4374.4,4374.3,0.0032]
[1756785320684,0.91540053,4374.4,4374.3,0.0032]
[1756785322290,0.91540053,4374.4,4374.3,0.0016]
[1756785322781,0.91540053,4374.4,4374.2,0.232]
[1756785322985,0.91540053,4374.3,4374.2,0.232]
[1756785323784,0.91540053,4374.3,4373.7,4.00491374]
[1756785323785,0.5239,4374.0,4373.9,0.232]
[1756785323987,1.03610053,4374.0,4373.7,4.00491374]
[1756785324187,0.91540053,4373.9,4373.8,0.232]
[1756785324579,0.91540053,4373.9,4373.7,3.2078]
[1756785324785,0.91540053,4373.9,4373.1,0.79711374]
[1756785324786,0.7022,4373.3,4373.2,3.2094]
[1756785325090,0.91540053,4373.3,4373.2,44.2414]
[1756785325483,0.91540053,4373.3,4373.2,3.4398]
[1756785326889,0.7022,4373.3,4373.2,3.4398]
[1756785327083,0.91548381,4373.3,4373.2,3.4398]
[1756785327890,0.91548381,4373.3,4373.2,3.4414]
[1756785328187,0.91548381,4373.3,4373.2,4.24011374]
[1756785328188,0.51228381,4373.3,4373.2,4.24011374]
[1756785328693,0.51233732,4373.3,4373.2,4.24111374]
[1756785330493,0.299,4373.7,4373.2,4.24111374]
[1756785330793,0.299,4373.5,4373.4,0.0042]
[1756785330991,0.51240277,4373.5,4373.4,0.2362]
[1756785331890,0.51240277,4373.5,4373.4,1.03331374]
[1756785332682,0.72150277,4373.5,4373.4,0.0016]
[1756785332896,0.7022,4373.3,4373.2,3.2078]
[1756785333194,1.71271651,4373.3,4373.2,3.4398]
[1756785335988,0.1207,4373.0,4372.8,40.8]
[1756785336294,0.1207,4373.0,4372.6,3.2078]
[1756785336295,0.7022,4372.7,4372.6,3.2078]
[1756785336495,0.91560277,4372.7,4372.6,3.4398]
[1756785336995,0.91560277,4372.7,4372.6,3.443]
[1756785337392,0.7022,4372.7,4372.6,3.443]
[1756785337598,0.91202831,4372.7,4372.6,3.443]
[1756785338498,0.91200955,4372.7,4372.6,3.443]
[1756785338798,0.71790955,4372.7,4372.6,3.443]
[1756785341296,0.91200955,4372.7,4372.6,3.2078]
[1756785341501,0.91200955,4372.7,4372.6,3.4398]
[1756785341703,0.91200955,4372.7,4372.6,3.4411]
[1756785342198,0.91200955,4372.7,4372.6,3.4398]
[1756785342798,0.91200955,4372.7,4372.6,3.2078]
[1756785344602,0.91192004,4372.7,4372.6,3.2078]
[1756785346402,0.387,4372.4,4372.1,3.2078]
[1756785346601,0.88692004,4372.3,4372.2,0.232]
[1756785347003,0.59672004,4372.3,4372.1,3.2078]
[1756785347203,0.88692004,4372.2,4372.1,3.2078]
[1756785347403,0.88692004,4372.2,4372.1,3.4398]
[1756785347602,0.88692004,4372.2,4372.1,3.2078]
[1756785347802,0.88692004,4372.2,4372.1,3.4398]
[1756785348200,0.88672311,4372.2,4372.1,3.2078]
[1756785348498,0.59652311,4372.2,4372.1,0.232]
[1756785348897,0.1244,4372.0,4371.5,3.2078]
[1756785349098,0.387,4371.6,4371.5,3.2091]
[1756785349297,0.88672311,4371.6,4371.5,3.2091]
[1756785349498,0.88672311,4371.6,4371.5,3.4411]
[1756785350299,0.88672311,4371.6,4371.5,3.2091]
[1756785350503,0.88672311,4371.6,4371.5,3.2078]
[1756785351101,0.88672311,4371.6,4371.0,3.2078]
[1756785351408,1.47431374,4371.1,4371.0,3.2078]
[1756785351610,1.68383685,4371.1,4371.0,3.2091]
[1756785353514,0.88672311,4371.1,4371.0,3.2091]
[1756785357216,0.88672311,4371.1,4371.0,3.2078]
[1756785357508,0.6772,4370.6,4370.5,3.2091]
[1756785357712,1.82662889,4370.6,4370.5,3.2078]
[1756785357907,0.4828,4370.0,4369.9,3.2091]
[1756785358307,0.2088302,4370.0,4369.9,7.2112]
[1756785358509,0.2902,4370.4,4369.9,7.2112]
[1756785358710,0.49891858,4370.3,4370.2,0.0034]
[1756785359013,0.6772,4370.9,4370.8,0.0013]
[1756785359209,0.8859102,4370.9,4370.8,0.0013]
[1756785359517,0.8859102,4370.9,4370.8,0.0026]
[1756785359707,0.8859102,4370.9,4370.8,0.0013]
[1756785360413,0.6915102,4370.9,4370.8,0.0026]
[1756785360615,0.4989102,4370.9,4370.8,0.0034]
[1756785361016,0.6915102,4370.9,4370.8,0.0026]
[1756785361312,0.8859102,4370.9,4370.8,0.0026]
[1756785361510,0.8859102,4370.9,4370.8,0.0013]
[1756785362319,0.8859102,4370.9,4370.8,0.0026]
[1756785363411,0.2902,4370.8,4370.6,0.232]
[1756785363616,0.8859102,4370.7,4370.6,0.2333]
[1756785364116,0.8859102,4370.7,4370.6,0.232]
[1756785364511,0.88589723,4370.7,4370.6,0.232]
[1756785364909,0.88589723,4370.7,4370.6,0.2333]
[1756785365110,0.88589723,4370.7,4370.6,0.2346]
[1756785365715,0.88589723,4370.7,4370.6,0.0026]
[1756785365911,0.88589723,4370.7,4370.5,3.2078]
[1756785365912,0.6772,4370.6,4370.5,0.232]
[1756785366110,0.1926,4370.1,4370.0,3.2104]
[1756785366312,0.2902,4370.1,4370.0,3.4432]
[1756785368214,0.2902,4370.1,4370.0,3.4424]
[1756785368415,0.4828,4370.1,4370.0,3.4424]
[1756785369210,0.2902,4370.1,4370.0,3.4432]
[1756785369416,0.69763257,4370.1,4370.0,3.4424]
[1756785369720,0.69763257,4370.1,4370.0,3.4432]
[1756785369721,0.50503257,4370.1,4370.0,3.4432]
[1756785371721,0.21483257,4370.1,4370.0,4.38310578]
[1756785372415,0.3144,4370.7,4370.1,0.0013]
[1756785372614,0.5165,4370.7,4370.6,0.004]
[1756785372820,0.73150047,4370.7,4370.6,0.236]
[1756785373223,0.93700047,4370.7,4370.6,0.236]
[1756785377926,0.73150047,4370.7,4370.6,0.236]
[1756785378521,0.7322874,4370.7,4370.6,0.236]
[1756785378722,0.73230539,4370.7,4370.6,0.236]
[1756785381133,0.93780539,4370.7,4370.6,0.236]
[1756785383530,0.93780539,4370.7,4370.6,0.234]
[1756785386035,0.93780539,4370.7,4370.6,0.232]
[1756785386226,0.93780539,4370.7,4370.6,3.4398]
[1756785388135,0.93780539,4370.7,4370.6,0.232]
[1756785389025,0.722,4370.7,4370.6,0.232]
[1756785389336,0.62389897,4370.7,4370.6,0.232]
[1756785389934,0.93829897,4370.7,4370.6,0.232]
[1756785390135,0.4076,4370.2,4370.1,3.2078]
[1756785390433,0.93824944,4370.2,4370.1,3.4398]
[1756785390636,0.93824944,4370.2,4370.1,3.4418]
[1756785390831,0.53064944,4370.2,4370.1,3.4451]
[1756785391536,0.73274944,4370.2,4370.1,3.4438]
[1756785391832,0.93824944,4370.2,4370.1,3.2078]
[1756785392232,0.93824944,4370.2,4370.1,3.4398]
[1756785392633,0.93824944,4370.2,4370.1,3.2078]
[1756785392831,0.93824944,4370.2,4370.1,3.4398]
[1756785394937,0.93824944,4370.2,4370.1,3.4438]
[1756785396137,0.722,4370.2,4370.1,3.4438]
[1756785396341,0.93906379,4370.2,4370.1,3.4438]
[1756785399644,0.94095832,4370.2,4370.1,3.4438]
[1756785405137,0.21895832,4370.2,4370.1,3.4447]
[1756785405343,0.21895832,4370.2,4370.1,4.79647578]
[1756785405643,0.72215832,4370.2,4370.1,6.65120919]
[1756785405841,0.5032,4370.2,4370.1,6.42237919]
[1756785406239,0.5032,4370.2,4370.1,5.25047341]
[1756785406441,0.5032,4370.2,4370.1,5.48247341]
[1756785406640,0.7069,4370.2,4370.1,5.48247341]
[1756785407045,0.7069,4370.2,4370.1,5.25047341]
[1756785407238,0.7069,4370.2,4370.1,3.4438]
[1756785407640,0.7069,4370.2,4370.1,3.2118]
[1756785407938,0.7069,4370.2,4370.1,3.4438]
[1756785414446,0.92721304,4370.2,4370.1,3.2078]
[1756785414648,0.92721304,4370.2,4370.1,3.4398]
[1756785415551,1.72629376,4370.2,4370.1,0.232]
[1756785415748,1.41979376,4370.2,4369.8,0.232]
[1756785415941,0.7069,4369.9,4369.8,0.232]
[1756785416146,0.92721304,4369.9,4369.8,0.232]
[1756785419149,0.7069,4369.9,4369.8,0.232]
[1756785419455,0.92687603,4369.9,4369.8,0.232]
[1756785419750,0.3065,4369.8,4369.5,3.2078]
[1756785419952,0.92687603,4369.7,4369.6,0.232]
[1756785420249,0.92687603,4369.7,4369.6,0.2334]
[1756785420453,0.92687603,4369.7,4369.6,0.2348]
[1756785420662,0.21997603,4369.7,4369.6,1.03478072]
[1756785421147,0.21997603,4369.7,4369.6,5.03478072]
[1756785421353,0.92687603,4369.7,4369.6,0.0028]
[1756785421550,1.72595675,4369.7,4369.6,0.2334]
[1756785421746,1.72595675,4369.7,4369.6,0.232]
[1756785423754,1.72595675,4369.7,4369.5,3.2078]
[1756785423755,0.7069,4369.6,4369.5,3.2078]
[1756785424057,0.92687603,4369.6,4369.5,3.4398]
[1756785424754,1.72595675,4369.6,4369.5,3.2078]
[1756785428757,1.72595675,4369.6,4369.5,3.21]
[1756785429358,1.7307777,4369.6,4369.5,3.21]
[1756785429857,1.7307777,4369.6,4369.5,3.2122]
[1756785430053,1.7307777,4369.6,4369.5,3.2078]
[1756785430255,0.4225,4369.5,4369.0,3.2078]
[1756785430454,1.50598072,4369.1,4369.0,3.2078]
[1756785430652,1.7307777,4369.1,4369.0,3.2078]
[1756785435359,0.2938,4368.8,4368.3,3.2078]
[1756785435664,1.49728072,4368.4,4368.3,3.2078]
[1756785435870,1.72196804,4368.4,4368.3,3.4398]
[1756785436658,0.22468732,4368.4,4368.3,3.4398]
[1756785437262,0.51848732,4368.4,4368.3,3.4398]
[1756785437463,0.72358732,4368.4,4368.3,3.4398]
[1756785438162,0.51848732,4368.4,4368.3,3.4398]
[1756785439264,0.51844969,4368.4,4368.3,3.4398]
[1756785439467,0.72354969,4368.4,4368.3,3.4398]
[1756785439970,0.7235861,4368.4,4368.3,3.4398]
[1756785440362,0.5184861,4368.4,4368.3,3.4398]
[1756785449775,0.51876032,4368.4,4368.3,3.4398]
[1756785451175,0.51876032,4368.4,4368.3,3.2078]
[1756785451376,0.51876032,4368.4,4368.3,3.4398]
[1756785453582,0.72386032,4368.4,4368.3,3.4398]
[1756785454985,0.72386032,4368.4,4368.3,3.2078]
[1756785455174,0.72386032,4368.4,4368.3,3.4398]
[1756785455686,0.92316032,4368.4,4368.3,3.2078]
[1756785455877,0.92316032,4368.4,4368.3,3.4398]
[1756785460286,0.9211363,4368.4,4368.3,3.4398]
[1756785460675,4.9211363,4368.4,4367.8,5.24647341]
[1756785460881,1.49728072,4367.9,4367.8,3.4398]
[1756785461180,1.72020364,4367.9,4367.8,3.4398]
[1756785461589,1.72020364,4367.9,4367.8,3.2078]
[1756785461887,1.72020364,4367.9,4367.8,3.4398]
[1756785462084,1.72020364,4367.9,4367.8,3.2078]
[1756785462684,5.72020364,4367.9,4366.7,5.24647341]
[1756785462879,0.3144,4367.4,4366.8,0.2356]
[1756785463086,0.53732292,4367.3,4367.2,3.2125]
[1756785463289,0.53732292,4367.3,4367.2,3.4445]
[1756785463592,0.53732292,4367.3,4367.2,3.4434]
[1756785464589,0.53732292,4367.3,4367.2,3.4445]
[1756785465191,0.73532292,4367.3,4367.2,3.4434]
[1756785466486,0.93822292,4367.3,4367.2,3.4434]
[1756785466793,0.93822292,4367.3,4367.2,0.2356]
[1756785467797,1.33640364,4367.3,4367.2,0.2367]
[1756785467988,1.33640364,4367.3,4367.2,0.2356]
[1756785468385,1.53440364,4367.3,4367.2,0.2356]
[1756785470293,1.73730364,4367.3,4367.2,0.2356]
[1756785470696,1.73667133,4367.3,4367.2,0.2356]
[1756785470903,1.42227133,4367.3,4367.2,0.0018]
[1756785471600,1.73667133,4367.3,4367.2,0.0036]
[1756785471801,0.53669061,4367.3,4367.2,0.0047]
[1756785472001,0.53669061,4367.3,4367.1,3.4416]
[1756785472002,0.7153,4367.2,4367.1,3.4416]
[1756785472303,0.93759061,4367.2,4367.1,3.4416]
[1756785473503,0.93759061,4367.2,4367.1,3.4434]
[1756785475098,0.93759061,4367.2,4367.1,3.2096]
[1756785475304,0.93759061,4367.2,4367.1,3.4398]
[1756785475612,1.87926416,4367.2,4367.1,3.4398]
[1756785477807,1.87926416,4367.2,4367.1,3.2078]
[1756785479007,1.87926416,4367.2,4367.1,3.4398]
[1756785479504,1.87926416,4367.2,4367.1,0.232]
[1756785479998,1.56486416,4367.2,4366.6,44.0078]
[1756785480199,0.5124,4366.7,4366.6,44.0078]
[1756785480402,0.5124,4366.7,4366.6,44.4699]
[1756785480403,0.22229061,4366.7,4366.6,44.4699]
[1756785480703,0.22229061,4366.7,4366.6,44.46991]
[1756785481010,0.3144,4367.2,4367.1,0.0071]
[1756785481304,0.73458267,4367.2,4367.1,0.2374]
[1756785481898,0.73453838,4367.2,4367.1,0.2374]
[1756785482407,0.5124,4366.7,4366.6,44.0078]
[1756785482607,0.53653838,4366.7,4366.6,44.2398]
[1756785482800,0.53653838,4366.7,4366.6,44.2415]
[1756785483509,0.3144,4366.6,4366.1,3.2078]
[1756785483805,0.5124,4366.2,4366.1,0.2374]
[1756785484011,0.734631,4366.2,4366.1,41.0374]
[1756785484399,0.734631,4366.2,4366.1,0.2374]
[1756785485909,0.937531,4366.2,4366.1,0.2374]
[1756785486808,0.937531,4366.2,4366.1,0.2347]
[1756785487005,0.3144,4366.1,4366.0,3.2078]
[1756785487307,0.937531,4366.1,4366.0,3.4398]
[1756785490409,0.937531,4366.1,4366.0,3.4425]
[1756785490613,0.937531,4366.1,4366.0,3.4452]
[1756785490815,0.93298086,4366.1,4366.0,3.4452]
[1756785491107,0.73008086,4366.1,4366.0,3.4452]
[1756785491614,0.73001212,4366.1,4366.0,3.4452]
[1756785492903,0.53201212,4366.1,4366.0,3.4467]
[1756785493415,0.53201212,4366.1,4366.0,3.4452]
[1756785494517,0.73721212,4366.1,4366.0,3.4452]
[1756785497917,0.73728933,4366.1,4366.0,3.4452]
[1756785498416,0.1219,4366.0,4365.9,0.232]
[1756785498716,1.98776288,4366.0,4365.9,0.232]
[1756785499516,1.04608933,4366.0,4365.9,0.2345]
[1756785501317,1.04604411,4366.0,4365.9,0.2345]
[1756785502616,0.2954,4365.9,4365.5,3.2078]
[1756785502921,0.7065,4365.9,4365.8,0.2345]
[1756785503122,0.92419429,4365.9,4365.8,0.237]
[1756785503423,0.92419429,4365.9,4365.8,0.2345]
[1756785504713,0.92419429,4365.9,4365.8,0.237]
[1756785507926,0.92419429,4365.9,4365.8,0.2385]
[1756785507927,0.51309429,4365.9,4365.8,0.2385]
[1756785509324,0.21769429,4365.9,4365.8,4.46755]
[1756785509627,0.2954,4366.4,4366.3,0.005]
[1756785509821,0.51332822,4366.4,4366.3,3.4463]
[1756785510013,0.51332822,4366.4,4366.3,44.2463]
[1756785510527,0.2954,4366.8,4366.4,0.0015]
[1756785510825,0.2954,4366.8,4366.7,0.0065]
[1756785511025,0.51330271,4366.8,4366.7,0.2385]
[1756785511824,0.2954,4366.8,4366.7,0.2385]
[1756785512020,0.51329773,4366.8,4366.7,0.2385]
[1756785512223,0.5006,4366.8,4366.7,0.005]
[1756785512525,0.5006,4366.8,4366.7,0.237]
[1756785512726,0.2954,4366.8,4366.7,0.2385]
[1756785514623,0.2954,4366.7,4366.5,2.0563896]
[1756785514829,0.4173,4366.5,4366.3,44.0078]
[1756785515025,0.92413534,4366.4,4366.3,44.0078]
[1756785515326,0.92369286,4366.4,4366.3,44.2398]
[1756785517229,0.92369286,4366.4,4366.3,44.0078]
[1756785517432,0.92369286,4366.4,4366.3,44.2398]
[1756785518625,0.51259286,4366.4,4366.3,44.2398]
[1756785522431,0.51276224,4366.4,4366.3,44.2398]
[1756785522830,0.51276224,4366.4,4366.3,44.2423]
[1756785523533,0.51276224,4366.4,4366.3,44.2398]
[1756785525936,0.51276224,4366.4,4366.3,44.2423]
[1756785526137,0.21736224,4366.4,4366.3,45.18397355]
[1756785526337,0.5133,4366.9,4366.8,0.008]
[1756785526537,0.73065453,4366.9,4366.8,3.4478]
[1756785530638,0.52555453,4366.9,4366.8,3.4503]
[1756785531436,0.21735453,4366.9,4366.8,3.4503]
[1756785531640,0.1189,4367.5,4366.8,3.4478]
[1756785531842,0.73058504,4367.4,4367.3,0.008]
[1756785532143,0.73058504,4367.4,4367.3,3.4503]
[1756785532339,0.73058504,4367.4,4367.3,44.2503]
[1756785532842,0.52548583,4367.4,4367.3,44.2503]
[1756785533443,0.52548583,4367.4,4367.3,44.43327156]
[1756785535444,0.52548583,4367.4,4367.3,45.23306458]
[1756785535841,0.52548583,4367.4,4367.3,45.05009302]
[1756785536142,0.52548583,4367.4,4367.3,45.04759302]
[1756785539841,0.52548583,4367.4,4367.3,44.2478]
[1756785541544,0.21728583,4367.4,4367.3,44.2494]
[1756785541951,0.52548583,4367.4,4367.3,44.2494]
[1756785542449,0.3082,4367.4,4367.3,44.2494]
[1756785542638,0.52577164,4367.4,4367.3,44.2494]
[1756785545443,0.21757164,4367.4,4367.3,44.2494]
[1756785545846,0.21757164,4367.4,4367.3,44.47836999]
[1756785546044,0.3082,4368.0,4367.4,0.0016]
[1756785546243,0.3082,4368.0,4367.3,46.52515959]
[1756785546244,0.3082,4368.0,4367.9,4.01419302]
[1756785546436,0.52523868,4368.0,4367.9,4.24619302]
[1756785549146,0.21703868,4368.0,4367.9,4.24619302]
[1756785549452,0.21703868,4368.0,4367.9,45.04619302]
[1756785550250,0.3082,4368.5,4367.9,45.04459302]
[1756785550440,0.3082,4368.5,4368.4,4.01259302]
[1756785550642,0.52490712,4368.5,4368.4,4.24459302]
[1756785550850,0.73000712,4368.5,4368.4,4.24459302]
[1756785551652,1.04320712,4368.5,4368.4,3.2103]
[1756785551850,0.41,4368.0,4367.9,40.8]
[1756785552051,0.689,4367.9,4367.8,3.2078]
[1756785552247,1.70550014,4367.9,4367.8,3.4398]
[1756785552946,1.70542769,4367.9,4367.8,3.4398]
[1756785553154,0.90563467,4367.9,4367.8,3.4398]
[1756785553951,0.90563467,4367.9,4367.8,3.2078]
[1756785554152,0.90563467,4367.9,4367.8,3.4398]
[1756785556352,0.689,4367.9,4367.8,3.4398]
[1756785556551,0.90570283,4367.9,4367.8,3.4398]
[1756785559959,0.90579381,4367.9,4367.8,3.4421]
[1756785560858,0.90579381,4367.9,4367.8,3.2078]
[1756785561058,0.90579381,4367.9,4367.8,3.4398]
[1756785563258,0.689,4367.9,4367.8,3.4398]
[1756785563458,0.90588454,4367.9,4367.8,3.4398]
[1756785564256,0.90588454,4367.9,4367.8,0.232]
[1756785564663,0.90588454,4367.9,4367.6,0.232]
[1756785564965,1.48879302,4367.7,4367.6,0.232]
[1756785565263,1.70567756,4367.7,4367.6,0.232]
[1756785573265,0.90588454,4367.7,4367.6,0.232]
[1756785573467,1.70567756,4367.7,4367.6,0.232]
[1756785573966,1.70569777,4367.7,4367.6,0.232]
[1756785574866,1.70568752,4367.7,4367.6,0.232]
[1756785577569,0.9058945,4367.7,4367.6,0.2366]
[1756785577768,0.5094945,4367.7,4367.6,0.238]
[1756785581471,0.2168945,4367.7,4367.6,4.238]
[1756785581862,0.5246945,4367.7,4367.6,4.238]
[1756785582170,0.5246945,4367.7,4367.6,45.038]
[1756785584575,0.52511244,4367.7,4367.6,45.038]
[1756785584769,0.52511244,4367.7,4367.6,40.8]
[1756785584974,0.52511244,4367.7,4367.6,41.032]
[1756785585370,0.52511244,4367.7,4367.6,40.8]
[1756785585570,0.52511244,4367.7,4367.3,2.0605896]
[1756785585571,0.3078,4367.6,4367.3,2.0605896]
[1756785585772,0.52511244,4367.5,4367.4,0.2372]
[1756785586076,0.52511244,4367.5,4367.4,41.0372]
[1756785586673,0.52511244,4367.5,4367.4,41.83699302]
[1756785590178,0.52511244,4367.5,4367.4,41.83859302]
[1756785590475,0.52511244,4367.5,4367.4,41.83699302]
[1756785591272,0.3078,4367.5,4367.4,41.83859302]
[1756785591478,0.52507358,4367.5,4367.4,41.83859302]
[1756785594780,0.3078,4367.5,4367.4,41.83859302]
[1756785595279,0.52507425,4367.5,4367.4,41.83859302]
[1756785595981,0.3078,4367.5,4367.4,41.83859302]
[1756785596280,0.52507349,4367.5,4367.4,41.83859302]
[1756785597584,0.52507349,4367.5,4367.4,41.97996058]
[1756785597778,0.21727349,4367.5,4367.4,41.97996058]
[1756785597983,0.52507349,4367.5,4367.4,41.97996058]
[1756785598684,0.52509645,4367.5,4367.4,41.97996058]
[1756785599079,0.21729645,4367.5,4367.4,41.97996058]
[1756785599783,0.52509645,4367.5,4367.4,44.03635018]
[1756785600279,0.21729645,4367.5,4367.4,44.03635018]
[1756785600482,0.52509645,4367.5,4367.4,44.03635018]
[1756785601083,0.21729645,4367.5,4367.4,44.03635018]
[1756785601280,0.1174,4368.5,4368.4,0.0042]
[1756785601281,0.32,4368.5,4368.4,0.0042]
[1756785601581,0.1174,4369.5,4368.3,3.2078]
[1756785601782,0.3986,4368.6,4368.5,3.2099]
[1756785601991,0.7064,4368.6,4368.5,44.2419]
[1756785602279,0.7064,4368.6,4368.5,44.0099]
[1756785602484,0.7064,4368.6,4368.5,44.2419]
[1756785602781,0.3078,4368.6,4368.5,44.2419]
[1756785603082,0.3078,4368.6,4368.5,44.2432]
[1756785603581,0.3078,4368.6,4368.5,44.2419]
[1756785604686,0.3078,4369.0,4368.9,0.0055]
[1756785604881,0.3078,4369.0,4368.9,0.2375]
[1756785605381,0.7064,4369.4,4369.3,0.0042]
[1756785605578,0.7064,4369.4,4369.3,3.444]
[1756785605983,0.7064,4369.4,4369.3,3.4398]
[1756785606581,0.7064,4369.4,4369.3,3.4419]
[1756785606883,0.7064,4369.4,4369.3,3.444]
[1756785607489,0.3078,4369.4,4369.3,3.444]
[1756785607685,0.7064,4369.4,4369.3,3.444]
[1756785607881,0.7064,4369.4,4369.3,3.4419]
[1756785608587,0.7064,4369.4,4369.3,3.444]
[1756785609591,0.5104,4369.4,4369.3,3.444]
[1756785611285,0.1172,4370.0,4369.3,3.212]
[1756785611489,0.7121,4369.4,4369.3,3.2099]
[1756785611684,0.1178,4369.0,4368.8,3.2078]
[1756785611893,0.7121,4368.9,4368.8,3.2097]
[1756785612091,0.7121,4368.9,4368.8,3.4407]
[1756785612289,0.7121,4368.9,4368.8,44.2407]
[1756785613383,0.91519039,4368.9,4368.8,44.2407]
[1756785613586,0.91519039,4368.9,4368.8,45.18186058]
[1756785613796,0.50409039,4368.9,4368.8,45.18306058]
[1756785614595,0.301,4368.9,4368.8,45.18306058]
[1756785618793,0.301,4368.9,4368.8,45.18186058]
[1756785620299,0.301,4368.9,4368.8,45.18306058]
[1756785622604,0.8299,4369.5,4369.4,0.0038]
[1756785622798,1.03303593,4369.5,4369.4,0.2348]
[1756785625509,1.0544615,4369.5,4369.4,0.2348]
[1756785626009,1.0544615,4369.5,4369.4,0.231]
[1756785626309,1.05450124,4369.5,4369.4,0.231]
[1756785627012,0.7121,4368.9,4368.7,3.2078]
[1756785627309,0.93670124,4368.9,4368.8,41.031]
[1756785630706,0.301,4368.8,4368.7,3.2078]
[1756785631009,0.301,4368.8,4368.7,3.4388]
[1756785631010,0.93670124,4368.8,4368.7,3.4388]
[1756785631612,0.93670124,4368.8,4368.7,0.231]
[1756785631808,0.93670124,4368.8,4368.2,44.0078]
[1756785631809,0.7121,4368.3,4368.2,3.2078]
[1756785632012,0.93670124,4368.3,4368.2,3.4388]
[1756785632404,0.93427413,4368.3,4368.2,3.4388]
[1756785632601,0.93427413,4368.3,4368.2,4.37996058]
[1756785633004,0.73017413,4368.3,4368.2,4.37996058]
[1756785634515,0.93427413,4368.3,4368.2,3.4388]
[1756785635914,0.7121,4368.3,4368.2,3.4388]
[1756785636116,0.9400414,4368.3,4368.2,3.4388]
[1756785639217,0.6390414,4368.3,4368.1,40.8]
[1756785639520,0.1178,4368.5,4367.7,3.2078]
[1756785639521,0.508,4367.8,4367.7,3.2078]
[1756785639717,0.9400414,4367.8,4367.7,3.4388]
[1756785640017,0.9400414,4367.8,4367.7,3.2078]
[1756785640219,0.9400414,4367.8,4367.7,3.4388]
[1756785641513,1.88120198,4367.8,4367.5,0.231]
[1756785641816,0.6999,4367.6,4367.5,0.231]
[1756785642019,0.9278414,4367.6,4367.5,0.231]
[1756785642513,0.4295,4367.5,4367.2,44.0078]
[1756785642712,0.6999,4367.3,4367.2,3.2078]
[1756785642916,0.9278414,4367.3,4367.2,3.4388]
[1756785646527,0.92710749,4367.3,4367.2,3.4388]
[1756785649225,0.73430749,4367.3,4367.2,3.4388]
[1756785649924,0.53080749,4367.3,4367.2,3.4388]
[1756785650524,0.73430749,4367.3,4367.2,3.4388]
[1756785651222,0.92710749,4367.3,4367.2,3.4388]
[1756785653429,0.92706748,4367.3,4367.2,3.4388]
[1756785656429,1.86822806,4367.3,4366.8,40.8]
[1756785656626,1.46336058,4367.0,4366.9,0.231]
[1756785656821,0.3963,4366.8,4366.7,3.2078]
[1756785657128,0.92718237,4366.8,4366.7,0.231]
[1756785657933,0.92718237,4366.8,4366.2,40.8]
[1756785657934,0.62358237,4366.8,4366.2,40.8]
[1756785658227,0.3036,4366.2,4366.1,3.4388]
[1756785658425,0.92718237,4366.2,4366.1,3.4388]
[1756785659830,0.22728237,4366.2,4366.1,3.4388]
[1756785660031,0.73438237,4366.2,4366.1,3.4388]
[1756785660236,0.22728237,4366.2,4366.1,3.4388]
[1756785660633,0.22728237,4366.2,4366.1,4.23923232]
[1756785661033,0.53088237,4366.2,4366.1,4.23923232]
[1756785661233,0.22728237,4366.2,4366.1,3.4388]
[1756785661438,0.22728237,4366.2,4366.1,4.23923232]
[1756785661640,0.53088237,4366.2,4366.1,4.23923232]
[1756785662437,0.53088237,4366.2,4366.1,3.442]
[1756785662940,0.53088237,4366.2,4366.1,3.443]
[1756785664143,0.53088237,4366.2,4366.1,4.24343232]
[1756785665545,0.53088237,4366.2,4366.1,3.442]
[1756785665743,0.73438237,4366.2,4366.1,3.442]
[1756785666443,0.3036,4366.2,4366.1,3.443]
[1756785666644,0.53442162,4366.2,4366.1,3.443]
[1756785667047,0.73792162,4366.2,4366.1,3.442]
[1756785667546,0.73790411,4366.2,4366.1,3.442]
[1756785667743,0.93070411,4366.2,4366.1,3.442]
[1756785667942,0.53440411,4366.2,4366.1,3.443]
[1756785668740,0.73790411,4366.2,4366.1,3.442]
[1756785669049,0.53440411,4366.2,4366.1,3.443]
[1756785669534,0.73790411,4366.2,4366.1,3.442]
[1756785669742,0.53440411,4366.2,4366.1,3.443]
[1756785669942,0.73790411,4366.2,4366.1,3.442]
[1756785670244,0.93070411,4366.2,4366.1,3.442]
[1756785671443,0.53440411,4366.2,4366.1,3.442]
[1756785671650,0.23080411,4366.2,4366.1,4.24243232]
[1756785671844,0.23080411,4366.2,4366.1,9.27189463]
[1756785672038,0.80043232,4367.1,4366.1,4.24243232]
[1756785672250,0.6874,4366.9,4366.8,3.2078]
[1756785672448,0.91830026,4366.9,4366.8,3.4388]
[1756785672747,0.52220026,4366.9,4366.8,3.2078]
[1756785672947,0.52220026,4366.9,4366.8,3.4388]
[1756785673250,0.91830026,4366.9,4366.8,3.4388]
[1756785674255,0.91830026,4366.9,4366.8,3.2078]
[1756785674854,4.91830026,4366.9,4366.8,3.2078]
[1756785676951,4.6874,4366.9,4366.8,3.2078]
[1756785677151,0.72077367,4366.9,4366.8,3.2078]
[1756785677358,0.51947367,4366.9,4366.8,4.00823232]
[1756785677757,0.51947367,4366.9,4366.8,4.23923232]
[1756785677959,0.22817367,4366.9,4366.8,4.23923232]
[1756785680555,0.2913,4367.2,4366.8,4.23923232]
[1756785680859,0.51959405,4367.1,4366.8,4.23923232]
[1756785681161,0.51959405,4367.0,4366.8,4.23923232]
[1756785681360,0.22829405,4366.9,4366.8,4.23923232]
[1756785682559,0.22829405,4366.9,4366.8,45.03923232]
[1756785683060,0.51959405,4366.9,4366.8,45.03923232]
[1756785683253,0.51959405,4366.9,4366.8,44.2388]
[1756785684456,0.91569405,4366.9,4366.8,3.4388]
[1756785687161,0.91569405,4366.9,4366.8,0.231]
[1756785687664,0.91570893,4366.9,4366.8,0.231]
[1756785688258,0.91569625,4366.9,4366.8,0.231]
[1756785688563,0.91567474,4366.9,4366.8,0.231]
[1756785689663,0.72087474,4366.9,4366.8,0.231]
[1756785689966,0.91567474,4366.9,4366.8,0.231]
[1756785698373,0.90768048,4366.9,4366.8,0.231]